fUSD/lending_fUSD_20241128
["ID","MTS","AMOUNT","RATE_DAILY","PERIOD"]
[343646241,1732778977898,-403.074,0.0002682,7]
[343646242,1732778977919,-150.0,0.00026829,4]
[343646243,1732778977941,-150.0,0.00026842,4]
[343646244,1732778977967,-150.0,0.00026866,4]
[343646245,1732778977995,-733.54517932,0.00026869,4]
[343646246,1732778978019,-301.66722049,0.00026869,4]
[343646247,1732778978042,-353.04326162,0.00026869,4]
[343646248,1732778978064,-3919.0,0.000269,15]
[343646249,1732778978090,-206162.6556354,0.00027,6]
[343646250,1732778978117,-285518.88807344,0.00027,120]
[343646251,1732778981032,-1187.663942,0.00026309,15]
[343646252,1732778981061,-560130.77792395,0.00027,120]
[343646259,1732779032635,-679.4726429,9.965e-05,2]
[343646260,1732779032672,-136.5273571,9.965e-05,2]
[343646261,1732779032681,-497.6226429,9.965e-05,2]
[343646267,1732779038494,-36.3773571,9.965e-05,2]
[343646268,1732779038504,-633.0,9.965e-05,2]
[343646269,1732779038513,-1104.865,9.965e-05,2]
[343646270,1732779038522,-443.82,9.97e-05,2]
[343646271,1732779038533,-434.62,9.97e-05,2]
[343646272,1732779038544,-614.241,9.98e-05,2]
[343646273,1732779038553,-300.0,9.998e-05,2]
[343646274,1732779038563,-508.68295765,9.999e-05,2]
[343646275,1732779038573,-325.56103914,9.999e-05,2]
[343646276,1732779038582,-115627.62108405,9.999e-05,2]
[343646277,1732779038594,-37012.12473311,9.999e-05,2]
[343646278,1732779038620,-2541.46052324,9.999e-05,2]
[343646429,1732779040602,-541.94,9.999e-05,2]
[343646430,1732779040614,-22759.83062453,9.999e-05,2]
[343646434,1732779044132,-477.24315663,9.999e-05,2]
[343646435,1732779044144,-7424.03260614,9.999e-05,2]
[343646436,1732779044156,-9176.6281547,9.999e-05,2]
[343646437,1732779044300,-6645.61719443,9.999e-05,2]
[343646438,1732779044325,-15839.01964029,9.999e-05,2]
[343646439,1732779044359,-2538.02772912,9.999e-05,2]
[343646441,1732779046395,-1916.36,9.999e-05,2]
[343646442,1732779046558,-15017.65917899,9.999e-05,2]
[343646444,1732779070628,400.0,9.592e-05,2]
[343646445,1732779071091,277.808075,9.894e-05,2]
[343646447,1732779105130,365.28,9.589e-05,2]
[343646448,1732779105347,324.06939664,9.732e-05,2]
[343646457,1732779512782,154.07,0.00016658,30]
[343646471,1732780231676,-1400.66,8.219e-05,2]
[343646472,1732780231686,-250.0,8.834e-05,2]
[343646473,1732780231695,-2000.0,8.865e-05,2]
[343646474,1732780231705,-195.48,8.865e-05,2]
[343646475,1732780231714,-250.0,8.943e-05,2]
[343646476,1732780231726,-226.4,8.947e-05,2]
[343646477,1732780231735,-250.0,9.018e-05,2]
[343646478,1732780231744,-1000.0,9.027e-05,2]
[343646479,1732780231753,-150.0,9.041e-05,2]
[343646480,1732780231762,-15006.09,9.078e-05,2]
[343646481,1732780231771,-173.67,9.125e-05,2]
[343646482,1732780231780,-162.86,9.514e-05,2]
[343646483,1732780231789,-400.0,9.589e-05,2]
[343646484,1732780231798,-1055.0,9.712e-05,2]
[343646485,1732780231808,-41.21060336,9.732e-05,2]
[343646486,1732780231816,-150.0,9.737e-05,2]
[343646487,1732780231826,-150.0,9.743e-05,2]
[343646488,1732780231836,-150.0,9.757e-05,2]
[343646489,1732780231850,-150.0,9.765e-05,2]
[343646490,1732780231860,-150.0,9.776e-05,2]
[343646491,1732780231870,-150.0,9.785e-05,2]
[343646492,1732780231879,-150.0,9.817e-05,2]
[343646493,1732780231888,-231.75446458,9.845e-05,2]
[343646494,1732780231898,-150.0,9.854e-05,2]
[343646495,1732780231907,-150.0,9.861e-05,2]
[343646496,1732780231916,-365.28,9.875e-05,2]
[343646497,1732780231926,-253.28674791,9.879e-05,2]
[343646498,1732780231937,-150.0,9.896e-05,2]
[343646500,1732780231946,-2500.0,9.899e-05,2]
[343646502,1732780231955,-150.0,9.903e-05,2]
[343646504,1732780231964,-500.0,9.945e-05,2]
[343646506,1732780231976,-534.0,9.965e-05,2]
[343646508,1732780231986,-150.0,9.965e-05,2]
[343646509,1732780231995,-500.0,9.973e-05,2]
[343646510,1732780232004,-195.48,9.973e-05,2]
[343646511,1732780232013,-150.0,9.998e-05,2]
[343646512,1732780232022,-150.0,9.998e-05,2]
[343646514,1732780232032,-150.0,9.998e-05,2]
[343646515,1732780232041,-150.0,9.998e-05,2]
[343646516,1732780232049,-150.0,9.998e-05,2]
[343646517,1732780232058,-150.0,9.998e-05,2]
[343646518,1732780232067,-150.0,9.998e-05,2]
[343646519,1732780232077,-150.0,9.998e-05,2]
[343646520,1732780232086,-150.0,9.998e-05,2]
[343646521,1732780232095,-500.0,9.998e-05,2]
[343646522,1732780232103,-217.57,9.998e-05,2]
[343646523,1732780232112,-500.0,9.998e-05,2]
[343646524,1732780232121,-500.0,9.998e-05,2]
[343646525,1732780232130,-500.0,9.998e-05,2]
[343646526,1732780232139,-500.0,9.998e-05,2]
[343646527,1732780232148,-586.868,9.998e-05,2]
[343646528,1732780232157,-500.0,9.998e-05,2]
[343646529,1732780232166,-500.0,9.998e-05,2]
[343646530,1732780232175,-500.0,9.998e-05,2]
[343646531,1732780232184,-500.0,9.998e-05,2]
[343646532,1732780232194,-500.0,9.998e-05,2]
[343646533,1732780232203,-500.0,9.998e-05,2]
[343646534,1732780232212,-500.0,9.998e-05,2]
[343646535,1732780232224,-500.0,9.998e-05,2]
[343646536,1732780232234,-500.0,9.998e-05,2]
[343646537,1732780232243,-452.86057344,9.998e-05,2]
[343646538,1732780232253,-633.02,9.998e-05,2]
[343646539,1732780232262,-570.52,9.998e-05,2]
[343646540,1732780232271,-500.0,9.998e-05,2]
[343646541,1732780232280,-156.66358883,9.998e-05,2]
[343646542,1732780232290,-450.0,9.998e-05,2]
[343646543,1732780232303,-500.0,9.998e-05,2]
[343646544,1732780232312,-527.94704487,9.998e-05,2]
[343646545,1732780232321,-500.0,9.998e-05,2]
[343646546,1732780232330,-500.0,9.998e-05,2]
[343646547,1732780232340,-500.0,9.998e-05,2]
[343646548,1732780232349,-500.0,9.998e-05,2]
[343646549,1732780232360,-616.32,9.998e-05,2]
[343646550,1732780232370,-500.0,9.998e-05,2]
[343646551,1732780232380,-500.0,9.998e-05,2]
[343646552,1732780232389,-726.80001584,9.999e-05,2]
[343646553,1732780232398,-878.86641245,9.999e-05,2]
[343646554,1732780232408,-500.0,9.999e-05,2]
[343646555,1732780232417,-500.0,9.999e-05,2]
[343646556,1732780232426,-500.0,9.999e-05,2]
[343646557,1732780232435,-500.0,9.999e-05,2]
[343646558,1732780232445,-500.0,9.999e-05,2]
[343646559,1732780232454,-500.0,9.999e-05,2]
[343646560,1732780232464,-500.0,9.999e-05,2]
[343646561,1732780232475,-500.0,9.999e-05,2]
[343646562,1732780232485,-482.06156419,9.999e-05,2]
[343646563,1732780232494,-500.0,9.999e-05,2]
[343646564,1732780232503,-500.0,9.999e-05,2]
[343646565,1732780232513,-521.08184378,9.999e-05,2]
[343646566,1732780232522,-500.0,9.999e-05,2]
[343646567,1732780232532,-500.0,9.999e-05,2]
[343646568,1732780232542,-500.0,9.999e-05,2]
[343646569,1732780232551,-528.12713353,9.999e-05,2]
[343646570,1732780232560,-500.0,9.999e-05,2]
[343646571,1732780232569,-410.8,9.999e-05,2]
[343646572,1732780232578,-500.0,9.999e-05,2]
[343646573,1732780232587,-500.0,9.999e-05,2]
[343646574,1732780232597,-500.0,9.999e-05,2]
[343646575,1732780232607,-500.0,9.999e-05,2]
[343646576,1732780232616,-534.86,9.999e-05,2]
[343646577,1732780232625,-526.12630775,9.999e-05,2]
[343646578,1732780232634,-501.38125298,9.999e-05,2]
[343646579,1732780232643,-500.0,9.999e-05,2]
[343646580,1732780232653,-192.61505959,9.999e-05,2]
[343646581,1732780232663,-500.0,9.999e-05,2]
[343646582,1732780232672,-500.0,9.999e-05,2]
[343646583,1732780232681,-500.0,9.999e-05,2]
[343646584,1732780232690,-500.0,9.999e-05,2]
[343646585,1732780232700,-500.0,9.999e-05,2]
[343646586,1732780232710,-500.0,9.999e-05,2]
[343646587,1732780232719,-500.0,9.999e-05,2]
[343646588,1732780232729,-466.93387067,9.999e-05,2]
[343646589,1732780232738,-500.0,9.999e-05,2]
[343646590,1732780232747,-500.0,9.999e-05,2]
[343646591,1732780232757,-500.0,9.999e-05,2]
[343646592,1732780232766,-500.0,9.999e-05,2]
[343646593,1732780232776,-500.0,9.999e-05,2]
[343646594,1732780232785,-500.0,9.999e-05,2]
[343646595,1732780232794,-500.0,9.999e-05,2]
[343646596,1732780232803,-500.0,9.999e-05,2]
[343646597,1732780232812,-500.0,9.999e-05,2]
[343646598,1732780232822,-562.14584019,9.999e-05,2]
[343646599,1732780232831,-486.24056662,9.999e-05,2]
[343646600,1732780232841,-500.0,9.999e-05,2]
[343646601,1732780232849,-500.0,9.999e-05,2]
[343646602,1732780232859,-500.0,9.999e-05,2]
[343646603,1732780232868,-250.77052699,9.999e-05,2]
[343646604,1732780232877,-351.9777497,9.999e-05,2]
[343646605,1732780232886,-500.0,9.999e-05,2]
[343646606,1732780232895,-465.17351446,9.999e-05,2]
[343646607,1732780232904,-500.0,9.999e-05,2]
[343646608,1732780233106,-588.67,9.999e-05,2]
[343646609,1732780233115,-500.0,9.999e-05,2]
[343646610,1732780233125,-500.0,9.999e-05,2]
[343646611,1732780233134,-500.0,9.999e-05,2]
[343646612,1732780233144,-233.73,9.999e-05,2]
[343646613,1732780233154,-500.0,9.999e-05,2]
[343646614,1732780233163,-500.0,9.999e-05,2]
[343646615,1732780233172,-500.0,9.999e-05,2]
[343646616,1732780233181,-500.0,9.999e-05,2]
[343646617,1732780233191,-500.0,9.999e-05,2]
[343646618,1732780233201,-500.0,9.999e-05,2]
[343646619,1732780233210,-500.0,9.999e-05,2]
[343646620,1732780233220,-500.0,9.999e-05,2]
[343646621,1732780233235,-500.0,9.999e-05,2]
[343646622,1732780233244,-645.69,9.999e-05,2]
[343646623,1732780233254,-500.0,9.999e-05,2]
[343646624,1732780233263,-500.0,9.999e-05,2]
[343646625,1732780233273,-500.0,9.999e-05,2]
[343646626,1732780233282,-500.0,9.999e-05,2]
[343646627,1732780233295,-500.0,9.999e-05,2]
[343646628,1732780233305,-500.0,9.999e-05,2]
[343646629,1732780233315,-535.74813237,9.999e-05,2]
[343646630,1732780233324,-500.0,9.999e-05,2]
[343646631,1732780233335,-500.0,9.999e-05,2]
[343646632,1732780233344,-500.0,9.999e-05,2]
[343646633,1732780233354,-500.0,9.999e-05,2]
[343646634,1732780233364,-546.9,9.999e-05,2]
[343646635,1732780233376,-632.82560589,9.999e-05,2]
[343646636,1732780233386,-500.0,9.999e-05,2]
[343646637,1732780233395,-500.0,9.999e-05,2]
[343646638,1732780233405,-500.0,9.999e-05,2]
[343646639,1732780233415,-500.0,9.999e-05,2]
[343646640,1732780233425,-500.0,9.999e-05,2]
[343646641,1732780233435,-500.0,9.999e-05,2]
[343646642,1732780233444,-500.0,9.999e-05,2]
[343646643,1732780233454,-500.0,9.999e-05,2]
[343646644,1732780233465,-500.0,9.999e-05,2]
[343646645,1732780233481,-500.0,9.999e-05,2]
[343646646,1732780233491,-386.28,9.999e-05,2]
[343646647,1732780233500,-500.0,9.999e-05,2]
[343646648,1732780233510,-411.96,9.999e-05,2]
[343646649,1732780233520,-500.0,9.999e-05,2]
[343646650,1732780233530,-500.0,9.999e-05,2]
[343646651,1732780233539,-496.48026483,9.999e-05,2]
[343646652,1732780233594,-3.51973517,9.999e-05,2]
[343646653,1732780233604,-500.0,9.999e-05,2]
[343646654,1732780233614,-500.0,9.999e-05,2]
[343646655,1732780233624,-500.0,9.999e-05,2]
[343646656,1732780233633,-500.8,9.999e-05,2]
[343646657,1732780233642,-500.0,9.999e-05,2]
[343646658,1732780233652,-418.87,9.999e-05,2]
[343646659,1732780233661,-500.0,9.999e-05,2]
[343646660,1732780233670,-500.0,9.999e-05,2]
[343646661,1732780233679,-500.0,9.999e-05,2]
[343646662,1732780233688,-330.98,9.999e-05,2]
[343646663,1732780233698,-500.0,9.999e-05,2]
[343646664,1732780233708,-500.0,9.999e-05,2]
[343646665,1732780233718,-500.0,9.999e-05,2]
[343646666,1732780233732,-500.0,9.999e-05,2]
[343646667,1732780233742,-500.0,9.999e-05,2]
[343646668,1732780233751,-500.0,9.999e-05,2]
[343646669,1732780233760,-500.0,9.999e-05,2]
[343646670,1732780233770,-159.31,9.999e-05,2]
[343646671,1732780233779,-500.0,9.999e-05,2]
[343646672,1732780233788,-500.0,9.999e-05,2]
[343646673,1732780233798,-500.0,9.999e-05,2]
[343646674,1732780233807,-500.0,9.999e-05,2]
[343646675,1732780233817,-500.0,9.999e-05,2]
[343646676,1732780233827,-190.31,9.999e-05,2]
[343646677,1732780233836,-353.38361404,9.999e-05,2]
[343646678,1732780233846,-500.0,9.999e-05,2]
[343646679,1732780233855,-49444.32496452,9.999e-05,2]
[343646691,1732780242529,-9920.21539996,9.999e-05,2]
[343646692,1732780242611,-37815.9243669,9.999e-05,2]
[343646693,1732780242623,-13998.07487892,9.999e-05,2]
[343646694,1732780242634,-305.32050296,9.999e-05,2]
[343646695,1732780242686,-9369.78079198,9.999e-05,2]
[343646696,1732780242750,-7062.78136335,9.999e-05,2]
[343646697,1732780242761,-17816.16850035,9.999e-05,2]
[343646698,1732780242772,-2406.98778727,9.999e-05,2]
[343646699,1732780242803,-781.27465,9.999e-05,2]
[343646700,1732780242857,-2980.10118557,9.999e-05,2]
[343646879,1732780245595,-3685.3162698,9.999e-05,2]
[343646880,1732780245606,-9565.7,9.999e-05,2]
[343646881,1732780245678,-186562.95263868,9.999e-05,2]
[343646883,1732780245880,-315.39315084,9.999e-05,2]
[343647176,1732780378940,154.07,0.00016658,30]
[343647177,1732780482779,-1486.84,0.000163,7]
[343647178,1732780482833,-416.88245758,0.00017572,15]
[343647179,1732780482864,-416.88245758,0.00017848,15]
[343647180,1732780482896,-416.88245758,0.00018134,15]
[343647181,1732780482928,-416.88245758,0.00018364,15]
[343647182,1732780482960,-11569.0,0.000187,5]
[343647183,1732780482989,-416.88245758,0.00018827,15]
[343647184,1732780483027,-416.88245758,0.0001911,15]
[343647185,1732780483060,-416.88245758,0.00019394,15]
[343647186,1732780483089,-416.88245758,0.00019669,15]
[343647187,1732780483121,-416.88245758,0.00019959,15]
[343647188,1732780487614,11569.0,0.000187,5]
[343647189,1732780515462,1040.79,0.000164,7]
[343647190,1732780519383,11569.0,0.000185,5]
[343647191,1732780521654,-416.88245758,0.00020251,15]
[343647192,1732780521693,-154.07,0.00020434,30]
[343647193,1732780521929,-416.88245758,0.00020491,15]
[343647194,1732780521971,-416.88245758,0.00020815,15]
[343647195,1732780522009,-867.33,0.000209,14]
[343647196,1732780522047,-416.88245758,0.00020994,15]
[343647197,1732780522083,-416.88245758,0.00021369,15]
[343647198,1732780522120,-416.88245758,0.000214,15]
[343647199,1732780522158,-416.88245758,0.00021707,15]
[343647200,1732780522205,-416.88245758,0.00022161,15]
[343647201,1732780522245,-416.88245758,0.00022233,15]
[343647202,1732780522284,-416.88245758,0.0002248,15]
[343647203,1732780522322,-416.88245758,0.00022833,15]
[343647204,1732780522360,-416.88245758,0.0002302,15]
[343647205,1732780522398,-416.88245758,0.00023419,15]
[343647206,1732780522435,-416.88245758,0.00023756,15]
[343647207,1732780532201,-416.88245758,0.00024082,15]
[343647208,1732780532240,-154.07,0.00024211,30]
[343647209,1732780532275,-416.88245758,0.00024292,15]
[343647210,1732780532312,-2743.0,0.000244,12]
[343647211,1732780532351,-416.88245758,0.00024537,15]
[343647212,1732780532390,-416.88245758,0.00024867,15]
[343647213,1732780532427,-2743.0,0.000249,13]
[343647214,1732780532465,-416.88245758,0.00024954,15]
[343647215,1732780532505,-416.88245758,0.00025248,15]
[343647216,1732780532540,-2743.0,0.000254,13]
[343647217,1732780532577,-416.88245758,0.00025595,15]
[343647218,1732780532614,-2743.0,0.000259,14]
[343647219,1732780532650,-6398.0,0.000259,15]
[343647220,1732780532685,-416.88245758,0.00025958,15]
[343647221,1732780532722,-1008.5913,0.00026133,15]
[343647222,1732780532759,-416.88245758,0.00026185,15]
[343647223,1732780532793,-2743.0,0.000264,14]
[343647224,1732780532828,-416.88245758,0.00026565,15]
[343647225,1732780532863,-416.88245769,0.0002677,15]
[343647226,1732780532897,-8528.20319698,0.000268,4]
[343647227,1732780532936,-2743.0,0.000269,15]
[343647228,1732780532979,-62867.42846953,0.00027,120]
[343647229,1732780536961,-100000.0,0.00027,120]
[343647230,1732780538891,-756.0,0.00026463,15]
[343647231,1732780538938,-99244.0,0.00027,120]
[343647232,1732780542581,-567.0,0.00026463,15]
[343647233,1732780542625,-99433.0,0.00027,120]
[343647234,1732780544676,-100000.0,0.00027,120]
[343647235,1732780546554,-425.445252,0.00026463,15]
[343647236,1732780546600,-99574.554748,0.00027,120]
[343647237,1732780548239,-100000.0,0.00027,120]
[343647238,1732780549725,-100000.0,0.00027,120]
[343647239,1732780552245,11569.0,0.000185,5]
[343647240,1732780584029,11569.0,0.000229,5]
[343647241,1732780615920,11569.0,0.000229,5]
[343647242,1732780629225,152.0,0.000216,5]
[343647243,1732780648341,11569.0,0.000227,5]
[343647245,1732780680730,11569.0,0.000227,5]
[343647246,1732780701899,468.36,0.000164,7]
[343647247,1732780702585,390.3,0.000209,14]
[343647248,1732780712650,11569.0,0.000225,5]
[343647249,1732780745386,11569.0,0.000223,5]
[343647250,1732780777199,11569.0,0.000223,5]
[343647251,1732780809847,11569.0,0.000221,5]
[343647252,1732780842293,11569.0,0.000221,5]
[343647253,1732780874051,11569.0,0.00022,5]
[343647254,1732780906130,11569.0,0.00022,5]
[343647255,1732780938666,11569.0,0.000218,5]
[343647256,1732780971412,11569.0,0.000218,5]
[343647257,1732781003343,11569.0,0.000216,5]
[343647258,1732781035406,11569.0,0.000216,5]
[343647259,1732781067185,11569.0,0.000214,5]
[343647260,1732781080258,210.76,0.000164,7]
[343647261,1732781080603,175.63,0.000209,14]
[343647262,1732781099621,11569.0,0.000214,5]
[343647263,1732781128125,500.0,0.00024,4]
[343647264,1732781131162,11569.0,0.000213,5]
[343647265,1732781148821,154.07,0.00016658,30]
[343647266,1732781149130,154.07,0.00021567,30]
[343647267,1732781162992,11569.0,0.000213,5]
[343647268,1732781182808,27205.37662806,0.00022,5]
[343647269,1732781195504,11569.0,0.000213,5]
[343647270,1732781227613,11569.0,0.000211,5]
[343647272,1732781259405,11569.0,0.000211,5]
[343647273,1732781265472,166.15,0.000164,7]
[343647274,1732781273115,1000.0,0.00021918,5]
[343647275,1732781273375,1000.0,0.00021918,5]
[343647276,1732781273797,1000.0,0.00021918,5]
[343647277,1732781274074,1000.0,0.00021918,5]
[343647278,1732781274342,1000.0,0.00021918,5]
[343647279,1732781274614,1000.0,0.00021918,5]
[343647280,1732781274881,1000.0,0.00021918,5]
[343647281,1732781275155,1000.0,0.00021918,5]
[343647282,1732781275422,1000.0,0.00021918,5]
[343647283,1732781275689,1000.0,0.00021918,5]
[343647284,1732781275952,1000.0,0.00021918,5]
[343647285,1732781276219,1000.0,0.00021918,5]
[343647286,1732781276483,1000.0,0.00021918,5]
[343647287,1732781276757,1000.0,0.00021918,5]
[343647288,1732781277044,1030.0,0.00021918,5]
[343647289,1732781291268,11569.0,0.00021,5]
[343647301,1732781323798,11569.0,0.00021,5]
[343647302,1732781356009,11569.0,0.000208,5]
[343647327,1732781388086,11569.0,0.000208,5]
[343647328,1732781420031,11569.0,0.000206,5]
[343647329,1732781431780,-1330.62,8.219e-05,2]
[343647330,1732781431790,-433.47,8.899e-05,2]
[343647331,1732781431800,-853.19,8.917e-05,2]
[343647332,1732781431809,-250.0,8.923e-05,2]
[343647333,1732781431819,-1000.0,8.936e-05,2]
[343647334,1732781431828,-168.23,8.942e-05,2]
[343647335,1732781431838,-176.04,8.989e-05,2]
[343647336,1732781431848,-291.0,9.157e-05,2]
[343647337,1732781431859,-2812.45,9.158e-05,2]
[343647338,1732781431989,-6057.28,9.158e-05,2]
[343647339,1732781431998,-250.0,9.203e-05,2]
[343647340,1732781432008,-173.67,9.21e-05,2]
[343647341,1732781432017,-466.37,9.589e-05,2]
[343647342,1732781432026,-400.0,9.589e-05,2]
[343647343,1732781432036,-150.0,9.59e-05,2]
[343647344,1732781432045,-1512.0,9.605e-05,2]
[343647345,1732781432054,-466.37,9.726e-05,2]
[343647346,1732781432064,-466.37,9.863e-05,2]
[343647347,1732781432075,-150.0,9.865e-05,2]
[343647348,1732781432084,-4247.7096,9.899e-05,2]
[343647349,1732781432094,-1297.584,9.899e-05,2]
[343647351,1732781432103,-671.6812,9.899e-05,2]
[343647360,1732781432307,-650.39,9.899e-05,2]
[343647362,1732781432317,-323.437,9.899e-05,2]
[343647364,1732781432327,-816.0,9.965e-05,2]
[343647365,1732781432336,-534.0,9.965e-05,2]
[343647366,1732781432346,-176.18226138,9.99e-05,2]
[343647367,1732781432355,-198.29109685,9.998e-05,2]
[343647368,1732781432369,-620.943,9.998e-05,2]
[343647369,1732781432379,-180.635,9.998e-05,2]
[343647370,1732781432389,-500.0,9.998e-05,2]
[343647371,1732781432398,-562.03233634,9.998e-05,2]
[343647372,1732781432407,-267.88538381,9.998e-05,2]
[343647373,1732781432417,-500.0,9.998e-05,2]
[343647374,1732781432426,-500.0,9.998e-05,2]
[343647375,1732781432436,-500.0,9.998e-05,2]
[343647376,1732781432445,-500.0,9.998e-05,2]
[343647377,1732781432454,-500.0,9.998e-05,2]
[343647378,1732781432464,-500.0,9.998e-05,2]
[343647379,1732781432473,-500.0,9.998e-05,2]
[343647380,1732781432482,-500.0,9.998e-05,2]
[343647381,1732781432492,-500.0,9.998e-05,2]
[343647382,1732781432502,-500.0,9.998e-05,2]
[343647383,1732781432511,-500.0,9.998e-05,2]
[343647384,1732781432520,-500.0,9.998e-05,2]
[343647385,1732781432529,-500.0,9.998e-05,2]
[343647386,1732781432538,-273.82443337,9.998e-05,2]
[343647387,1732781432548,-500.0,9.998e-05,2]
[343647388,1732781432557,-504.75778454,9.998e-05,2]
[343647389,1732781432566,-500.0,9.998e-05,2]
[343647390,1732781432576,-500.0,9.998e-05,2]
[343647391,1732781432586,-258.83525441,9.998e-05,2]
[343647392,1732781432596,-184.60684916,9.998e-05,2]
[343647393,1732781432606,-500.0,9.998e-05,2]
[343647394,1732781432619,-500.0,9.999e-05,2]
[343647395,1732781432628,-501.56745658,9.999e-05,2]
[343647396,1732781432637,-500.0,9.999e-05,2]
[343647397,1732781432647,-500.0,9.999e-05,2]
[343647398,1732781432656,-500.0,9.999e-05,2]
[343647399,1732781432665,-500.0,9.999e-05,2]
[343647400,1732781432674,-500.0,9.999e-05,2]
[343647401,1732781432684,-500.0,9.999e-05,2]
[343647402,1732781432697,-500.0,9.999e-05,2]
[343647403,1732781432707,-186.68,9.999e-05,2]
[343647404,1732781432717,-501.45637566,9.999e-05,2]
[343647405,1732781432726,-500.0,9.999e-05,2]
[343647406,1732781432737,-500.0,9.999e-05,2]
[343647407,1732781432747,-509.88187107,9.999e-05,2]
[343647408,1732781432757,-500.0,9.999e-05,2]
[343647409,1732781432766,-500.0,9.999e-05,2]
[343647410,1732781432776,-500.0,9.999e-05,2]
[343647411,1732781432785,-500.0,9.999e-05,2]
[343647412,1732781432795,-413.83785633,9.999e-05,2]
[343647413,1732781432804,-502.00908665,9.999e-05,2]
[343647414,1732781432814,-500.000001,9.999e-05,2]
[343647415,1732781432823,-500.0,9.999e-05,2]
[343647416,1732781432833,-481.04885687,9.999e-05,2]
[343647417,1732781432842,-538.84192933,9.999e-05,2]
[343647418,1732781432852,-500.0,9.999e-05,2]
[343647419,1732781432864,-522.643182,9.999e-05,2]
[343647420,1732781432873,-500.0,9.999e-05,2]
[343647421,1732781432882,-402.70908239,9.999e-05,2]
[343647422,1732781432891,-500.0,9.999e-05,2]
[343647423,1732781432901,-500.0,9.999e-05,2]
[343647424,1732781432910,-500.0,9.999e-05,2]
[343647425,1732781432919,-500.0,9.999e-05,2]
[343647426,1732781432929,-579.1,9.999e-05,2]
[343647427,1732781432938,-500.0,9.999e-05,2]
[343647428,1732781432947,-500.0,9.999e-05,2]
[343647429,1732781432957,-491.6999993,9.999e-05,2]
[343647430,1732781432966,-396.87997609,9.999e-05,2]
[343647431,1732781432975,-500.0,9.999e-05,2]
[343647432,1732781432985,-500.0,9.999e-05,2]
[343647433,1732781432995,-500.0,9.999e-05,2]
[343647434,1732781433003,-415.41599366,9.999e-05,2]
[343647435,1732781433016,-84.58400634,9.999e-05,2]
[343647436,1732781433027,-500.0,9.999e-05,2]
[343647437,1732781433036,-500.0,9.999e-05,2]
[343647438,1732781433045,-500.0,9.999e-05,2]
[343647439,1732781433055,-500.0,9.999e-05,2]
[343647440,1732781433064,-500.0,9.999e-05,2]
[343647441,1732781433073,-207.39994208,9.999e-05,2]
[343647442,1732781433084,-44.76903608,9.999e-05,2]
[343647443,1732781433094,-292.04549112,9.999e-05,2]
[343647444,1732781433103,-214.38097981,9.999e-05,2]
[343647445,1732781433115,-552.85136981,9.999e-05,2]
[343647446,1732781433124,-565.02237906,9.999e-05,2]
[343647447,1732781433133,-500.0,9.999e-05,2]
[343647448,1732781433143,-500.0,9.999e-05,2]
[343647449,1732781433152,-500.0,9.999e-05,2]
[343647450,1732781433161,-612.95852979,9.999e-05,2]
[343647451,1732781433170,-584.54680628,9.999e-05,2]
[343647452,1732781433179,-500.0,9.999e-05,2]
[343647453,1732781433188,-453.7023623,9.999e-05,2]
[343647454,1732781433200,-48.88094502,9.999e-05,2]
[343647455,1732781433210,-512.29184825,9.999e-05,2]
[343647456,1732781433219,-500.0,9.999e-05,2]
[343647457,1732781433229,-500.0,9.999e-05,2]
[343647458,1732781433238,-500.0,9.999e-05,2]
[343647459,1732781433247,-500.0,9.999e-05,2]
[343647460,1732781433256,-500.0,9.999e-05,2]
[343647461,1732781433265,-17.55720673,9.999e-05,2]
[343647463,1732781437715,-198.29109685,9.998e-05,2]
[343647465,1732781437725,-466.98415819,9.999e-05,2]
[343647466,1732781437735,-84.46565193,9.999e-05,2]